[Event "Titled Tuesday Blitz July 4 Late 2023"]
[White "Lalanne, Pablo"]
[Black "Mendez Machado, Andre"]
[WhiteFideId "112151"]
[BlackFideId "6603793"]
[WhiteElo "2430"]
[BlackElo "2267"]
[Result "1-0"]
[Round "9"]
[TimeControl "180+2"]
[Date "2023.07.04"]
[WhiteClock "0:00:22"]
[BlackClock "0:00:00"]
[Board "88"]

1. e4 {[%clk 0:03:00]}  e5 {[%clk 0:02:40]} 2. Nf3 {[%clk 0:02:59]}  Nc6 {[%clk 0:02:41]} 3. Bb5 {[%clk 0:02:59]}  a6 {[%clk 0:02:41]} 4. Ba4 {[%clk 0:02:58]}  Nf6 {[%clk 0:02:42]} 5. O-O {[%clk 0:02:58]}  b5 {[%clk 0:02:42]} 6. Bb3 {[%clk 0:02:58]}  Bb7 {[%clk 0:02:40]} 7. d3 {[%clk 0:02:53]}  Bc5 {[%clk 0:02:37]} 8. c3 {[%clk 0:02:52]}  O-O {[%clk 0:02:27]} 9. Re1 {[%clk 0:02:46]}  d5 {[%clk 0:02:18]} 10. exd5 {[%clk 0:02:40]}  Nxd5 {[%clk 0:02:18]} 11. Bg5 {[%clk 0:02:24]}  Qd6 {[%clk 0:02:08]} 12. Nbd2 {[%clk 0:02:21]}  f5 {[%clk 0:01:24]} 13. c4 {[%clk 0:02:07]}  bxc4 {[%clk 0:00:47]} 14. Nxc4 {[%clk 0:02:06]}  Qg6 {[%clk 0:00:29]} 15. Ncxe5 {[%clk 0:02:01]}  Nxe5 {[%clk 0:00:29]} 16. Rxe5 {[%clk 0:02:00]}  c6 {[%clk 0:00:11]} 17. Rc1 {[%clk 0:01:48]}  Bd6 {[%clk 0:00:12]} 18. Re1 {[%clk 0:01:34]}  Kh8 {[%clk 0:00:11]} 19. d4 {[%clk 0:01:19]}  h6 {[%clk 0:00:12]} 20. Bd2 {[%clk 0:01:15]}  f4 {[%clk 0:00:11]} 21. Bc2 {[%clk 0:01:11]}  Qg4 {[%clk 0:00:10]} 22. h3 {[%clk 0:01:09]}  Qd7 {[%clk 0:00:09]} 23. Qe2 {[%clk 0:01:06]}  Rae8 {[%clk 0:00:08]} 24. Qd3 {[%clk 0:01:06]}  Nf6 {[%clk 0:00:08]} 25. Bc3 {[%clk 0:00:52]}  Bc7 {[%clk 0:00:08]} 26. d5 {[%clk 0:00:48]}  Qxd5 {[%clk 0:00:06]} 27. Qg6 {[%clk 0:00:43]}  Qf7 {[%clk 0:00:06]} 28. Rxe8 {[%clk 0:00:35]}  Qxe8 {[%clk 0:00:04]} 29. Qd3 {[%clk 0:00:27]}  Qd8 {[%clk 0:00:03]} 30. Qc4 {[%clk 0:00:23]}  Qd5 {[%clk 0:00:00]} 31. Qb4 {[%clk 0:00:22]} 1-0


[Site "https://www.chess.com"]

[Event "Titled Tuesday Blitz July 4 Late 2023"]
[White "Mikhalsky, Vladimir"]
[Black "Curtis, John"]
[WhiteFideId "14144352"]
[BlackFideId "3200256"]
[WhiteElo "2424"]
[BlackElo "2143"]
[Result "1/2-1/2"]
[Round "9"]
[TimeControl "180+2"]
[Date "2023.07.04"]
[WhiteClock "0:00:17"]
[BlackClock "0:02:15"]
[Board "89"]

1. e4 {[%clk 0:00:31]}  e5 {[%clk 0:02:57]} 2. Nf3 {[%clk 0:00:30]}  Nc6 {[%clk 0:02:58]} 3. Bb5 {[%clk 0:00:30]}  Nf6 {[%clk 0:02:57]} 4. O-O {[%clk 0:00:29]}  Be7 {[%clk 0:02:53]} 5. d4 {[%clk 0:00:29]}  Nxe4 {[%clk 0:02:50]} 6. Re1 {[%clk 0:00:28]}  Nd6 {[%clk 0:02:48]} 7. Bxc6 {[%clk 0:00:28]}  dxc6 {[%clk 0:02:48]} 8. dxe5 {[%clk 0:00:28]}  Nf5 {[%clk 0:02:49]} 9. Qxd8+ {[%clk 0:00:28]}  Bxd8 {[%clk 0:02:49]} 10. g4 {[%clk 0:00:27]}  Ne7 {[%clk 0:02:48]} 11. h3 {[%clk 0:00:26]}  h5 {[%clk 0:02:46]} 12. Nh2 {[%clk 0:00:23]}  Ng6 {[%clk 0:02:44]} 13. f4 {[%clk 0:00:18]}  hxg4 {[%clk 0:02:39]} 14. hxg4 {[%clk 0:00:18]}  Rh4 {[%clk 0:02:19]} 15. f5 {[%clk 0:00:18]}  Ne7 {[%clk 0:02:15]} 16. Nc3 {[%clk 0:00:17]} 1/2-1/2


[Site "https://www.chess.com"]

[Event "Titled Tuesday Blitz July 4 Late 2023"]
[White "Zherebtsova, Alexandra"]
[Black "reevecanada"]
[WhiteFideId "24129518"]
[WhiteElo "2347"]
[BlackElo "2528"]
[Result "0-1"]
[Round "9"]
[TimeControl "180+2"]
[Date "2023.07.04"]
[WhiteClock "0:00:00"]
[BlackClock "0:02:07"]
[Board "93"]

1. d4 {[%clk 0:02:44]}  d5 {[%clk 0:02:59]} 2. Nf3 {[%clk 0:02:38]}  Nf6 {[%clk 0:02:56]} 3. c4 {[%clk 0:02:37]}  c6 {[%clk 0:02:55]} 4. Nbd2 {[%clk 0:02:36]}  Bf5 {[%clk 0:02:55]} 5. Nh4 {[%clk 0:02:35]}  Bg6 {[%clk 0:02:54]} 6. Qb3 {[%clk 0:02:34]}  Qd7 {[%clk 0:02:53]} 7. Ndf3 {[%clk 0:02:24]}  e6 {[%clk 0:02:49]} 8. Ne5 {[%clk 0:02:21]}  Qc7 {[%clk 0:02:49]} 9. Bf4 {[%clk 0:01:43]}  Bd6 {[%clk 0:02:48]} 10. c5 {[%clk 0:01:17]}  Bxe5 {[%clk 0:02:45]} 11. Bxe5 {[%clk 0:01:17]}  Qa5+ {[%clk 0:02:45]} 12. Qc3 {[%clk 0:01:03]}  Qd8 {[%clk 0:02:44]} 13. Nxg6 {[%clk 0:01:00]}  hxg6 {[%clk 0:02:43]} 14. f3 {[%clk 0:00:55]}  O-O {[%clk 0:02:42]} 15. g4 {[%clk 0:00:50]}  Nbd7 {[%clk 0:02:41]} 16. Bd6 {[%clk 0:00:50]}  Re8 {[%clk 0:02:41]} 17. O-O-O {[%clk 0:00:41]}  b6 {[%clk 0:02:39]} 18. h4 {[%clk 0:00:36]}  bxc5 {[%clk 0:02:38]} 19. dxc5 {[%clk 0:00:36]}  e5 {[%clk 0:02:38]} 20. h5 {[%clk 0:00:33]}  g5 {[%clk 0:02:35]} 21. e3 {[%clk 0:00:20]}  Re6 {[%clk 0:02:27]} 22. Ba6 {[%clk 0:00:18]}  Ne8 {[%clk 0:02:23]} 23. Bb7 {[%clk 0:00:13]}  Nxd6 {[%clk 0:02:22]} 24. cxd6 {[%clk 0:00:13]}  Rb8 {[%clk 0:02:22]} 25. Bxc6 {[%clk 0:00:10]}  Rc8 {[%clk 0:02:21]} 26. Kb1 {[%clk 0:00:09]}  Nb8 {[%clk 0:02:21]} 27. Rxd5 {[%clk 0:00:08]}  Rxc6 {[%clk 0:02:21]} 28. Rc5 {[%clk 0:00:08]}  Rexd6 {[%clk 0:02:20]} 29. Rxc6 {[%clk 0:00:06]}  Nxc6 {[%clk 0:02:21]} 30. Rc1 {[%clk 0:00:06]}  Qd7 {[%clk 0:02:17]} 31. Qc5 {[%clk 0:00:04]}  f6 {[%clk 0:02:15]} 32. f4 {[%clk 0:00:03]}  exf4 {[%clk 0:02:15]} 33. exf4 {[%clk 0:00:04]}  gxf4 {[%clk 0:02:15]} 34. Qc4+ {[%clk 0:00:04]}  Qe6 {[%clk 0:02:15]} 35. Qxf4 {[%clk 0:00:04]}  Qe5 {[%clk 0:02:16]} 36. Qa4 {[%clk 0:00:04]}  Nd4 {[%clk 0:02:15]} 37. Ka1 {[%clk 0:00:03]}  Qe4 {[%clk 0:02:14]} 38. a3 {[%clk 0:00:02]}  Rc6 {[%clk 0:02:07]} 39. Rxc6 {[%clk 0:00:02]}  Qh1+ {[%clk 0:02:06]} 40. Ka2 {[%clk 0:00:02]}  Nxc6 {[%clk 0:02:07]} 41. Qc4+ {[%clk 0:00:00]}  Kh8 {[%clk 0:02:07]} 0-1


[Site "https://www.chess.com"]

[Event "Titled Tuesday Blitz July 4 Late 2023"]
[White "Shapiro, Daniel"]
[Black "Fiol, Fabrice"]
[WhiteFideId "2001780"]
[BlackFideId "611670"]
[WhiteElo "2339"]
[BlackElo "2521"]
[Result "0-1"]
[Round "9"]
[TimeControl "180+2"]
[Date "2023.07.04"]
[WhiteClock "0:00:02"]
[BlackClock "0:00:25"]
[Board "95"]

1. d4 {[%clk 0:02:46]}  Nf6 {[%clk 0:02:57]} 2. c4 {[%clk 0:02:47]}  e6 {[%clk 0:02:56]} 3. g3 {[%clk 0:02:46]}  Bb4+ {[%clk 0:02:56]} 4. Bd2 {[%clk 0:02:45]}  Qe7 {[%clk 0:02:56]} 5. Bg2 {[%clk 0:02:44]}  O-O {[%clk 0:02:56]} 6. Qc2 {[%clk 0:02:44]}  a5 {[%clk 0:02:51]} 7. Nf3 {[%clk 0:02:44]}  d5 {[%clk 0:02:41]} 8. a3 {[%clk 0:02:42]}  Bxd2+ {[%clk 0:02:40]} 9. Nbxd2 {[%clk 0:02:43]}  b6 {[%clk 0:02:36]} 10. O-O {[%clk 0:02:39]}  Ba6 {[%clk 0:02:34]} 11. Rfe1 {[%clk 0:02:38]}  Nbd7 {[%clk 0:02:30]} 12. cxd5 {[%clk 0:02:33]}  exd5 {[%clk 0:02:27]} 13. Qxc7 {[%clk 0:02:23]}  Rfc8 {[%clk 0:02:23]} 14. Qf4 {[%clk 0:02:22]}  Rc2 {[%clk 0:02:22]} 15. b3 {[%clk 0:02:05]}  Re8 {[%clk 0:02:17]} 16. Bf1 {[%clk 0:01:48]}  h6 {[%clk 0:02:12]} 17. e3 {[%clk 0:01:44]}  Bxf1 {[%clk 0:02:10]} 18. Rxf1 {[%clk 0:01:41]}  Ne4 {[%clk 0:02:04]} 19. Rfc1 {[%clk 0:00:45]}  Rxc1+ {[%clk 0:01:53]} 20. Rxc1 {[%clk 0:00:45]}  Qxa3 {[%clk 0:01:53]} 21. Rc7 {[%clk 0:00:41]}  Ndf6 {[%clk 0:01:42]} 22. Nxe4 {[%clk 0:00:40]}  dxe4 {[%clk 0:01:16]} 23. Ne5 {[%clk 0:00:39]}  Qxb3 {[%clk 0:00:58]} 24. Nxf7 {[%clk 0:00:22]}  Qd1+ {[%clk 0:00:48]} 25. Kg2 {[%clk 0:00:22]}  Qf3+ {[%clk 0:00:48]} 26. Qxf3 {[%clk 0:00:22]}  exf3+ {[%clk 0:00:49]} 27. Kxf3 {[%clk 0:00:23]}  Ra8 {[%clk 0:00:46]} 28. Nd6 {[%clk 0:00:18]}  a4 {[%clk 0:00:44]} 29. Nb5 {[%clk 0:00:17]}  a3 {[%clk 0:00:44]} 30. Rc1 {[%clk 0:00:14]}  Nd5 {[%clk 0:00:38]} 31. e4 {[%clk 0:00:13]}  Nb4 {[%clk 0:00:36]} 32. e5 {[%clk 0:00:10]}  a2 {[%clk 0:00:34]} 33. Nc3 {[%clk 0:00:09]}  Ra3 {[%clk 0:00:29]} 34. Ke4 {[%clk 0:00:07]}  Rxc3 {[%clk 0:00:28]} 35. Ra1 {[%clk 0:00:07]}  Rb3 {[%clk 0:00:25]} 36. d5 {[%clk 0:00:02]}  Kf8 {[%clk 0:00:25]} 0-1


[Site "https://www.chess.com"]

[Event "Titled Tuesday Blitz July 4 Late 2023"]
[White "Kirillov, Dmitry"]
[Black "Korpics, Zsolt"]
[WhiteFideId "34180572"]
[BlackFideId "705241"]
[WhiteElo "2515"]
[BlackElo "2320"]
[Result "0-1"]
[Round "9"]
[TimeControl "180+2"]
[Date "2023.07.04"]
[WhiteClock "0:01:32"]
[BlackClock "0:00:24"]
[Board "97"]

1. d4 {[%clk 0:03:00]}  Nf6 {[%clk 0:02:57]} 2. Nf3 {[%clk 0:03:01]}  e6 {[%clk 0:02:56]} 3. Bg5 {[%clk 0:02:57]}  h6 {[%clk 0:02:52]} 4. Bxf6 {[%clk 0:02:57]}  Qxf6 {[%clk 0:02:53]} 5. e4 {[%clk 0:02:57]}  d6 {[%clk 0:02:51]} 6. Nc3 {[%clk 0:02:51]}  Nd7 {[%clk 0:02:45]} 7. Bb5 {[%clk 0:02:45]}  c6 {[%clk 0:02:43]} 8. Bd3 {[%clk 0:02:44]}  e5 {[%clk 0:02:37]} 9. dxe5 {[%clk 0:02:43]}  Nxe5 {[%clk 0:02:36]} 10. Nxe5 {[%clk 0:02:41]}  dxe5 {[%clk 0:02:32]} 11. O-O {[%clk 0:02:31]}  Bc5 {[%clk 0:02:25]} 12. Qe2 {[%clk 0:02:30]}  O-O {[%clk 0:02:13]} 13. Rad1 {[%clk 0:02:30]}  Qg6 {[%clk 0:02:12]} 14. Kh1 {[%clk 0:02:29]}  Be6 {[%clk 0:02:09]} 15. Bc4 {[%clk 0:02:27]}  Rad8 {[%clk 0:02:05]} 16. Bxe6 {[%clk 0:02:26]}  Qxe6 {[%clk 0:02:06]} 17. f3 {[%clk 0:02:25]}  Rd4 {[%clk 0:02:00]} 18. b3 {[%clk 0:02:18]}  Rfd8 {[%clk 0:01:58]} 19. Rxd4 {[%clk 0:02:17]}  Bxd4 {[%clk 0:01:53]} 20. Rd1 {[%clk 0:02:16]}  Rd6 {[%clk 0:01:50]} 21. Nb1 {[%clk 0:02:06]}  Qd7 {[%clk 0:01:26]} 22. c3 {[%clk 0:01:59]}  Bb6 {[%clk 0:01:13]} 23. Rxd6 {[%clk 0:01:59]}  Qxd6 {[%clk 0:01:13]} 24. Qd2 {[%clk 0:01:59]}  Qc5 {[%clk 0:01:10]} 25. Qe1 {[%clk 0:01:58]}  Kf8 {[%clk 0:01:02]} 26. g3 {[%clk 0:01:58]}  Ke7 {[%clk 0:01:02]} 27. Kg2 {[%clk 0:01:58]}  h5 {[%clk 0:01:00]} 28. h4 {[%clk 0:01:58]}  f6 {[%clk 0:00:52]} 29. Qc1 {[%clk 0:01:57]}  Qf2+ {[%clk 0:00:50]} 30. Kh3 {[%clk 0:01:52]}  Qxf3 {[%clk 0:00:49]} 31. Nd2 {[%clk 0:01:49]}  Qg4+ {[%clk 0:00:46]} 32. Kh2 {[%clk 0:01:49]}  Bf2 {[%clk 0:00:43]} 33. Nf1 {[%clk 0:01:45]}  Qxe4 {[%clk 0:00:38]} 34. Qd2 {[%clk 0:01:45]}  Bb6 {[%clk 0:00:36]} 35. c4 {[%clk 0:01:45]}  Qf3 {[%clk 0:00:35]} 36. Qg2 {[%clk 0:01:41]}  Qxg2+ {[%clk 0:00:29]} 37. Kxg2 {[%clk 0:01:42]}  Kd6 {[%clk 0:00:29]} 38. Kf3 {[%clk 0:01:43]}  Kc5 {[%clk 0:00:25]} 39. a3 {[%clk 0:01:32]}  Kd4 {[%clk 0:00:24]} 0-1


[Site "https://www.chess.com"]

[Event "Titled Tuesday Blitz July 4 Late 2023"]
[White "Antonio, Jorge Carlos"]
[Black "Womacka, Mathias"]
[WhiteFideId "113190"]
[BlackFideId "4611390"]
[WhiteElo "2290"]
[BlackElo "2496"]
[Result "0-1"]
[Round "9"]
[TimeControl "180+2"]
[Date "2023.07.04"]
[WhiteClock "0:00:54"]
[BlackClock "0:00:17"]
[Board "98"]

1. d4 {[%clk 0:03:00]}  Nf6 {[%clk 0:02:58]} 2. Nf3 {[%clk 0:03:00]}  e6 {[%clk 0:02:58]} 3. Bf4 {[%clk 0:02:59]}  c5 {[%clk 0:02:54]} 4. e3 {[%clk 0:02:58]}  d5 {[%clk 0:02:53]} 5. c3 {[%clk 0:02:58]}  Bd6 {[%clk 0:02:52]} 6. Ne5 {[%clk 0:02:57]}  O-O {[%clk 0:02:49]} 7. Nd2 {[%clk 0:02:56]}  Nc6 {[%clk 0:02:48]} 8. Nxc6 {[%clk 0:02:55]}  bxc6 {[%clk 0:02:47]} 9. Bxd6 {[%clk 0:02:55]}  Qxd6 {[%clk 0:02:46]} 10. Nf3 {[%clk 0:02:55]}  cxd4 {[%clk 0:02:43]} 11. exd4 {[%clk 0:02:55]}  c5 {[%clk 0:02:42]} 12. Be2 {[%clk 0:02:48]}  cxd4 {[%clk 0:02:37]} 13. cxd4 {[%clk 0:02:44]}  Ba6 {[%clk 0:02:36]} 14. O-O {[%clk 0:02:42]}  Rfc8 {[%clk 0:02:17]} 15. Bxa6 {[%clk 0:02:37]}  Qxa6 {[%clk 0:02:17]} 16. Ne5 {[%clk 0:02:38]}  Qb6 {[%clk 0:02:06]} 17. b3 {[%clk 0:02:36]}  Rc3 {[%clk 0:01:55]} 18. Qd2 {[%clk 0:02:33]}  Ne4 {[%clk 0:01:49]} 19. Qf4 {[%clk 0:02:30]}  f6 {[%clk 0:01:33]} 20. Nf3 {[%clk 0:02:29]}  Rac8 {[%clk 0:01:32]} 21. h4 {[%clk 0:02:25]}  Qd6 {[%clk 0:01:17]} 22. Qg4 {[%clk 0:02:20]}  Rc2 {[%clk 0:01:14]} 23. h5 {[%clk 0:02:18]}  Rb2 {[%clk 0:00:59]} 24. Rac1 {[%clk 0:02:14]}  Rcc2 {[%clk 0:00:57]} 25. Rxc2 {[%clk 0:02:14]}  Rxc2 {[%clk 0:00:58]} 26. Ra1 {[%clk 0:02:14]}  Nxf2 {[%clk 0:00:51]} 27. Qh4 {[%clk 0:02:03]}  Ne4 {[%clk 0:00:50]} 28. h6 {[%clk 0:02:03]}  Qg3 {[%clk 0:00:45]} 29. Qxg3 {[%clk 0:01:57]}  Nxg3 {[%clk 0:00:46]} 30. hxg7 {[%clk 0:01:56]}  Kxg7 {[%clk 0:00:47]} 31. b4 {[%clk 0:01:49]}  Rb2 {[%clk 0:00:35]} 32. a3 {[%clk 0:01:48]}  h5 {[%clk 0:00:34]} 33. Ne1 {[%clk 0:01:45]}  Ne2+ {[%clk 0:00:33]} 34. Kh1 {[%clk 0:01:45]}  Nxd4 {[%clk 0:00:34]} 35. Nd3 {[%clk 0:01:44]}  Rd2 {[%clk 0:00:26]} 36. Nc5 {[%clk 0:01:44]}  e5 {[%clk 0:00:24]} 37. a4 {[%clk 0:01:43]}  Rb2 {[%clk 0:00:21]} 38. b5 {[%clk 0:01:42]}  e4 {[%clk 0:00:21]} 39. Kg1 {[%clk 0:01:27]}  h4 {[%clk 0:00:20]} 40. Rd1 {[%clk 0:01:24]}  Ne2+ {[%clk 0:00:19]} 41. Kh2 {[%clk 0:01:21]}  Nc3 {[%clk 0:00:18]} 42. Ra1 {[%clk 0:01:14]}  d4 {[%clk 0:00:17]} 43. Ne6+ {[%clk 0:01:14]}  Kg6 {[%clk 0:00:16]} 44. Nxd4 {[%clk 0:01:15]}  e3 {[%clk 0:00:17]} 45. Re1 {[%clk 0:01:10]}  e2 {[%clk 0:00:16]} 46. g3 {[%clk 0:01:08]}  Rd2 {[%clk 0:00:16]} 47. Nf3 {[%clk 0:01:03]}  hxg3+ {[%clk 0:00:15]} 48. Kxg3 {[%clk 0:01:03]}  Ra2 {[%clk 0:00:14]} 49. Kf2 {[%clk 0:00:58]}  Rxa4 {[%clk 0:00:13]} 50. Ng1 {[%clk 0:00:57]}  Ra2 {[%clk 0:00:13]} 51. Nxe2 {[%clk 0:00:56]}  Rxe2+ {[%clk 0:00:13]} 52. Rxe2 {[%clk 0:00:56]}  Nxe2 {[%clk 0:00:14]} 53. Kxe2 {[%clk 0:00:56]}  Kf5 {[%clk 0:00:14]} 54. Ke3 {[%clk 0:00:56]}  Ke5 {[%clk 0:00:15]} 55. Kf3 {[%clk 0:00:56]}  Kd5 {[%clk 0:00:15]} 56. Kf4 {[%clk 0:00:57]}  Kc4 {[%clk 0:00:15]} 57. Kf5 {[%clk 0:00:57]}  Kxb5 {[%clk 0:00:15]} 58. Kxf6 {[%clk 0:00:58]}  a5 {[%clk 0:00:16]} 59. Ke5 {[%clk 0:00:59]}  Kb4 {[%clk 0:00:15]} 60. Ke4 {[%clk 0:00:59]}  a4 {[%clk 0:00:16]} 61. Kd3 {[%clk 0:00:59]}  Kb3 {[%clk 0:00:17]} 62. Kd2 {[%clk 0:00:54]}  Kb2 {[%clk 0:00:17]} 0-1


[Site "https://www.chess.com"]

[Event "Titled Tuesday Blitz July 4 Late 2023"]
[White "financieru"]
[Black "Thiel, Thomas"]
[BlackFideId "4615964"]
[WhiteElo "2383"]
[BlackElo "2224"]
[Result "1-0"]
[Round "9"]
[TimeControl "180+2"]
[Date "2023.07.04"]
[WhiteClock "0:00:33"]
[BlackClock "0:00:41"]
[Board "101"]

1. d4 {[%clk 0:03:00]}  d5 {[%clk 0:02:59]} 2. c4 {[%clk 0:03:00]}  dxc4 {[%clk 0:03:00]} 3. Nf3 {[%clk 0:03:00]}  Nf6 {[%clk 0:02:57]} 4. Nc3 {[%clk 0:03:01]}  a6 {[%clk 0:02:50]} 5. a4 {[%clk 0:02:54]}  e6 {[%clk 0:02:49]} 6. e4 {[%clk 0:02:51]}  c5 {[%clk 0:02:48]} 7. d5 {[%clk 0:02:39]}  exd5 {[%clk 0:02:47]} 8. e5 {[%clk 0:02:40]}  Ne4 {[%clk 0:02:44]} 9. Nxd5 {[%clk 0:02:16]}  Qa5+ {[%clk 0:02:41]} 10. Bd2 {[%clk 0:02:12]}  Nxd2 {[%clk 0:02:41]} 11. Qxd2 {[%clk 0:01:54]}  Qxd2+ {[%clk 0:02:27]} 12. Nxd2 {[%clk 0:01:47]}  Kd8 {[%clk 0:02:26]} 13. Bxc4 {[%clk 0:01:46]}  Be6 {[%clk 0:02:25]} 14. O-O-O {[%clk 0:01:45]}  Nc6 {[%clk 0:02:14]} 15. Ne4 {[%clk 0:01:45]}  Kc8 {[%clk 0:02:07]} 16. Nb6+ {[%clk 0:01:44]}  Kb8 {[%clk 0:02:01]} 17. Bxe6 {[%clk 0:01:44]}  fxe6 {[%clk 0:01:55]} 18. Nxa8 {[%clk 0:01:42]}  Kxa8 {[%clk 0:01:56]} 19. Rd7 {[%clk 0:01:35]}  g6 {[%clk 0:01:42]} 20. f4 {[%clk 0:01:19]}  Bh6 {[%clk 0:01:33]} 21. g3 {[%clk 0:01:18]}  g5 {[%clk 0:01:30]} 22. fxg5 {[%clk 0:01:05]}  Nxe5 {[%clk 0:01:29]} 23. Re7 {[%clk 0:00:55]}  Nc6 {[%clk 0:01:21]} 24. Rxe6 {[%clk 0:00:44]}  Bg7 {[%clk 0:01:15]} 25. Nxc5 {[%clk 0:00:37]}  Rc8 {[%clk 0:01:13]} 26. Kb1 {[%clk 0:00:37]}  Nd4 {[%clk 0:01:09]} 27. Re7 {[%clk 0:00:30]}  Bf8 {[%clk 0:01:09]} 28. Rxh7 {[%clk 0:00:31]}  Bxc5 {[%clk 0:01:08]} 29. g6 {[%clk 0:00:31]}  Nf5 {[%clk 0:01:02]} 30. g7 {[%clk 0:00:31]}  Bd4 {[%clk 0:01:01]} 31. Rh8 {[%clk 0:00:31]}  Rxh8 {[%clk 0:00:58]} 32. gxh8=Q+ {[%clk 0:00:32]}  Bxh8 {[%clk 0:00:41]} 33. Rf1 {[%clk 0:00:33]} 1-0


[Site "https://www.chess.com"]

[Event "Titled Tuesday Blitz July 4 Late 2023"]
[White "Cooper, Aaron"]
[Black "Prieto Aranguren, Alain"]
[WhiteFideId "2634945"]
[BlackFideId "2268906"]
[WhiteElo "2217"]
[BlackElo "2379"]
[Result "0-1"]
[Round "9"]
[TimeControl "180+2"]
[Date "2023.07.04"]
[WhiteClock "0:00:16"]
[BlackClock "0:01:45"]
[Board "102"]

1. e4 {[%clk 0:03:00]}  c6 {[%clk 0:03:00]} 2. d4 {[%clk 0:03:00]}  d5 {[%clk 0:02:51]} 3. exd5 {[%clk 0:03:01]}  cxd5 {[%clk 0:02:51]} 4. Bd3 {[%clk 0:03:02]}  Nc6 {[%clk 0:02:50]} 5. c3 {[%clk 0:03:02]}  Qc7 {[%clk 0:02:51]} 6. Ne2 {[%clk 0:03:02]}  Bg4 {[%clk 0:02:51]} 7. O-O {[%clk 0:03:01]}  e6 {[%clk 0:02:51]} 8. Qe1 {[%clk 0:03:01]}  Nf6 {[%clk 0:02:50]} 9. f3 {[%clk 0:02:59]}  Bh5 {[%clk 0:02:51]} 10. Qh4 {[%clk 0:02:58]}  h6 {[%clk 0:02:47]} 11. Ng3 {[%clk 0:02:43]}  Bg6 {[%clk 0:02:46]} 12. Bxg6 {[%clk 0:02:41]}  fxg6 {[%clk 0:02:46]} 13. Re1 {[%clk 0:02:40]}  Kf7 {[%clk 0:02:39]} 14. Na3 {[%clk 0:02:30]}  a6 {[%clk 0:02:37]} 15. Nc2 {[%clk 0:02:30]}  Bd6 {[%clk 0:02:36]} 16. Qh3 {[%clk 0:02:20]}  Rae8 {[%clk 0:02:35]} 17. Ne3 {[%clk 0:02:10]}  g5 {[%clk 0:02:21]} 18. Ng4 {[%clk 0:02:05]}  Nxg4 {[%clk 0:02:21]} 19. fxg4 {[%clk 0:01:57]}  Rhf8 {[%clk 0:02:20]} 20. Nh5 {[%clk 0:01:44]}  Kg8 {[%clk 0:02:17]} 21. Be3 {[%clk 0:01:30]}  Na5 {[%clk 0:02:09]} 22. Rad1 {[%clk 0:01:08]}  Nc4 {[%clk 0:02:08]} 23. Bc1 {[%clk 0:01:07]}  e5 {[%clk 0:02:01]} 24. dxe5 {[%clk 0:01:07]}  Qc5+ {[%clk 0:01:57]} 25. Be3 {[%clk 0:01:01]}  Nxe3 {[%clk 0:01:56]} 26. Qxe3 {[%clk 0:01:01]}  Qxe3+ {[%clk 0:01:56]} 27. Rxe3 {[%clk 0:01:00]}  Bc5 {[%clk 0:01:48]} 28. Rd4 {[%clk 0:01:00]}  Bxd4 {[%clk 0:01:48]} 29. cxd4 {[%clk 0:01:01]}  Rc8 {[%clk 0:01:48]} 30. h3 {[%clk 0:00:36]}  Rc1+ {[%clk 0:01:47]} 31. Kh2 {[%clk 0:00:36]}  Rc2 {[%clk 0:01:48]} 32. Rf3 {[%clk 0:00:16]}  Rxf3 {[%clk 0:01:45]} 0-1


[Site "https://www.chess.com"]

[Event "Titled Tuesday Blitz July 4 Late 2023"]
[White "ChawitAp"]
[Black "Hartikainen, Jarmo"]
[BlackFideId "503134"]
[WhiteElo "2370"]
[BlackElo "2175"]
[Result "1-0"]
[Round "9"]
[TimeControl "180+2"]
[Date "2023.07.04"]
[WhiteClock "0:01:26"]
[BlackClock "0:00:15"]
[Board "105"]

1. Nf3 {[%clk 0:02:59]}  Nf6 {[%clk 0:02:59]} 2. g3 {[%clk 0:02:59]}  g6 {[%clk 0:02:59]} 3. Bg2 {[%clk 0:03:00]}  Bg7 {[%clk 0:02:59]} 4. O-O {[%clk 0:03:01]}  O-O {[%clk 0:03:00]} 5. c4 {[%clk 0:03:01]}  c5 {[%clk 0:02:59]} 6. Nc3 {[%clk 0:03:02]}  Nc6 {[%clk 0:02:59]} 7. b3 {[%clk 0:03:02]}  d5 {[%clk 0:02:53]} 8. cxd5 {[%clk 0:03:02]}  Nxd5 {[%clk 0:02:52]} 9. Bb2 {[%clk 0:03:03]}  Nxc3 {[%clk 0:02:52]} 10. Bxc3 {[%clk 0:03:04]}  Bxc3 {[%clk 0:02:52]} 11. dxc3 {[%clk 0:03:05]}  Qxd1 {[%clk 0:02:52]} 12. Rfxd1 {[%clk 0:03:06]}  Rd8 {[%clk 0:02:37]} 13. Nd2 {[%clk 0:03:05]}  Bd7 {[%clk 0:02:24]} 14. Ne4 {[%clk 0:03:00]}  b6 {[%clk 0:02:19]} 15. Nxc5 {[%clk 0:02:41]}  bxc5 {[%clk 0:01:48]} 16. Rxd7 {[%clk 0:02:41]}  Rxd7 {[%clk 0:01:48]} 17. Bxc6 {[%clk 0:02:41]}  Rad8 {[%clk 0:01:47]} 18. Bxd7 {[%clk 0:02:41]}  Rxd7 {[%clk 0:01:48]} 19. Kg2 {[%clk 0:02:41]}  Rd2 {[%clk 0:01:43]} 20. Kf3 {[%clk 0:02:41]}  f5 {[%clk 0:01:34]} 21. Ke3 {[%clk 0:02:40]}  Rd6 {[%clk 0:01:28]} 22. b4 {[%clk 0:02:23]}  cxb4 {[%clk 0:01:17]} 23. cxb4 {[%clk 0:02:24]}  e5 {[%clk 0:01:01]} 24. Rc1 {[%clk 0:02:21]}  Rd7 {[%clk 0:00:49]} 25. Rc5 {[%clk 0:02:17]}  e4 {[%clk 0:00:46]} 26. a4 {[%clk 0:02:17]}  Kf7 {[%clk 0:00:45]} 27. b5 {[%clk 0:02:16]}  Ke6 {[%clk 0:00:42]} 28. a5 {[%clk 0:02:11]}  Kd6 {[%clk 0:00:39]} 29. Rc6+ {[%clk 0:02:05]}  Kd5 {[%clk 0:00:39]} 30. Ra6 {[%clk 0:01:50]}  Rb7 {[%clk 0:00:36]} 31. b6 {[%clk 0:01:45]}  axb6 {[%clk 0:00:36]} 32. Rxb6 {[%clk 0:01:36]}  Rxb6 {[%clk 0:00:18]} 33. axb6 {[%clk 0:01:37]}  Kc6 {[%clk 0:00:19]} 34. Kf4 {[%clk 0:01:37]}  Kxb6 {[%clk 0:00:19]} 35. Kg5 {[%clk 0:01:38]}  Kc5 {[%clk 0:00:20]} 36. Kh6 {[%clk 0:01:35]}  Kd4 {[%clk 0:00:19]} 37. Kxh7 {[%clk 0:01:30]}  Kc3 {[%clk 0:00:18]} 38. Kxg6 {[%clk 0:01:26]}  Kd2 {[%clk 0:00:18]} 39. Kxf5 {[%clk 0:01:25]}  Kxe2 {[%clk 0:00:18]} 40. Kxe4 {[%clk 0:01:26]}  Kxf2 {[%clk 0:00:15]} 41. Kf5 {[%clk 0:01:26]} 1-0


[Site "https://www.chess.com"]